bitfinex/quotes_BTCUSD_20241110
["timestamp","ask_amount","ask_price","bid_price","bid_amount"]
[1731270083733,0.001674,79481.0,79480.0,0.19524454]
[1731270084302,0.12749,79481.0,79480.0,0.03696459]
[1731270084731,0.13569208,79481.0,79480.0,0.03696459]
[1731270085540,0.15869208,79481.0,79480.0,0.03696459]
[1731270086116,0.15869208,79481.0,79480.0,0.05951563]
[1731270087026,0.15869208,79481.0,79480.0,0.03676817]
[1731270087557,0.00987608,79481.0,79480.0,0.16271038]
[1731270087756,0.13569208,79481.0,79480.0,0.06562171]
[1731270087961,0.00987608,79481.0,79480.0,0.16271038]
[1731270088339,0.13569208,79481.0,79480.0,0.03676817]
[1731270090441,0.13569208,79481.0,79480.0,0.05951554]
[1731270091132,0.13569208,79481.0,79480.0,0.03676817]
[1731270091579,0.00987608,79481.0,79480.0,0.03676817]
[1731270092227,0.13569208,79481.0,79480.0,0.03676817]
[1731270092656,0.00987608,79481.0,79480.0,0.03676817]
[1731270093083,0.00987608,79481.0,79480.0,0.21388998]
[1731270093298,0.00987608,79481.0,79480.0,0.21253161]
[1731270093752,0.13569208,79481.0,79480.0,0.0652004]
[1731270094225,0.13569208,79481.0,79480.0,0.08794709]
[1731270094436,0.13569208,79481.0,79480.0,0.0652004]
[1731270095365,0.00987608,79481.0,79480.0,0.3194758]
[1731270095583,0.00987608,79481.0,79480.0,0.37634596]
[1731270095801,0.001674,79481.0,79480.0,0.37634596]
[1731270096230,0.001674,79481.0,79480.0,0.34791373]
[1731270097567,0.001674,79481.0,79480.0,0.34991373]
[1731270098240,0.001674,79481.0,79480.0,0.31314556]
[1731270098423,0.001674,79481.0,79480.0,0.22226925]
[1731270098626,0.001674,79481.0,79480.0,0.1628829]
[1731270099028,0.123,79480.0,79477.0,0.02273706]
[1731270099228,0.125835,79469.0,79467.0,0.18917777]
[1731270099728,0.125835,79469.0,79460.0,0.00251678]
[1731270099937,0.125835,79469.0,79459.0,0.18917777]
[1731270100321,0.125835,79469.0,79460.0,0.002]
[1731270100774,0.125835,79469.0,79463.0,0.002]
[1731270100988,0.125835,79469.0,79460.0,0.02273706]
[1731270101177,0.125835,79469.0,79460.0,0.02473706]
[1731270101566,0.125835,79469.0,79462.0,0.02273706]
[1731270101746,0.125835,79469.0,79461.0,0.02273706]
[1731270101946,0.125835,79469.0,79462.0,0.02273706]
[1731270102146,0.125835,79469.0,79460.0,0.02473706]
[1731270102355,0.125835,79469.0,79464.0,0.02273706]
[1731270102556,0.125835,79469.0,79465.0,0.00251653]
[1731270102789,0.125835,79469.0,79465.0,0.02273706]
[1731270102953,0.04002574,79475.0,79468.0,0.12677921]
[1731270102954,0.251652,79475.0,79468.0,0.12677921]
[1731270103155,0.251652,79475.0,79469.0,0.14366184]
[1731270103477,0.00640673,79474.0,79470.0,0.005]
[1731270103644,0.00640673,79474.0,79473.0,0.135828]
[1731270103845,0.001674,79481.0,79475.0,0.005]
[1731270104043,0.001674,79481.0,79480.0,0.02276034]
[1731270104264,0.001674,79481.0,79480.0,0.14870255]
[1731270104474,0.001674,79481.0,79480.0,0.15070255]
[1731270104673,0.00810152,79481.0,79480.0,0.12594221]
[1731270104876,0.001674,79481.0,79480.0,0.14870255]
[1731270105082,0.13391752,79481.0,79480.0,0.1652728]
[1731270105318,0.13391752,79481.0,79480.0,0.14251246]
[1731270105705,0.00810152,79481.0,79480.0,0.14251246]
[1731270106080,0.001674,79481.0,79480.0,0.14251246]
[1731270106500,0.00810722,79481.0,79480.0,0.14251246]
[1731270106699,0.00408082,79481.0,79480.0,0.14251246]
[1731270107601,0.001674,79481.0,79480.0,0.14251246]
[1731270108004,0.00810722,79481.0,79480.0,0.14251246]
[1731270108170,0.001674,79481.0,79480.0,0.14251246]
[1731270108377,0.00810722,79481.0,79480.0,0.14251246]
[1731270108576,0.01051404,79481.0,79480.0,0.14251246]
[1731270109027,0.001674,79481.0,79480.0,0.1652651]
[1731270109394,0.00810778,79481.0,79480.0,0.1652651]
[1731270109603,0.125816,79481.0,79480.0,0.04550745]
[1731270109815,0.208416,79481.0,79480.0,0.02275264]
[1731270110159,0.208416,79481.0,79480.0,0.02358964]
[1731270110160,0.21668451,79481.0,79480.0,0.02358964]
[1731270110487,0.24387581,79481.0,79480.0,0.02358964]
[1731270110756,0.24387581,79481.0,79480.0,0.000837]
[1731270110901,0.38521377,79481.0,79480.0,0.000837]
[1731270111123,0.41963288,79481.0,79480.0,0.000837]
[1731270111316,1.01363868,79481.0,79480.0,0.000837]
[1731270111719,1.0690433,79481.0,79480.0,0.000837]
[1731270112330,1.01363868,79481.0,79480.0,0.000837]
[1731270112726,1.0690433,79481.0,79480.0,0.000837]
[1731270112943,1.1246433,79481.0,79480.0,1e-06]
[1731270113139,1.1246433,79481.0,79468.0,0.000837]
[1731270113140,0.225835,79469.0,79468.0,0.000837]
[1731270113380,0.46756516,79469.0,79468.0,0.000837]
[1731270113561,0.47031984,79469.0,79468.0,0.000837]
[1731270115399,0.59626205,79469.0,79468.0,0.000837]
[1731270116673,0.12858968,79469.0,79468.0,0.000837]
[1731270117216,0.13400514,79469.0,79468.0,0.000837]
[1731270117452,0.17521917,79469.0,79468.0,0.000837]
[1731270117854,0.19821917,79469.0,79468.0,0.000837]
[1731270120598,0.13400514,79469.0,79468.0,0.000837]
[1731270120952,0.00817014,79469.0,79468.0,0.01502877]
[1731270121168,0.13400514,79469.0,79468.0,0.01502877]
[1731270121986,0.13400514,79469.0,79468.0,0.000837]
[1731270122405,0.13400514,79469.0,79468.0,0.01502877]
[1731270123151,0.13400514,79469.0,79468.0,0.01493031]
[1731270123816,0.13400514,79469.0,79468.0,0.13587252]
[1731270124025,0.13400514,79469.0,79468.0,0.14945977]
[1731270124233,0.00817014,79469.0,79468.0,0.14945977]
[1731270124435,0.00817014,79469.0,79468.0,0.15145977]
[1731270124638,0.13400514,79469.0,79468.0,0.17201019]
[1731270124957,0.125835,79469.0,79468.0,0.15842294]
[1731270125166,0.13423474,79469.0,79468.0,0.13587252]
[1731270125587,0.13423474,79469.0,79468.0,0.02351756]
[1731270125726,0.13423474,79469.0,79468.0,0.13587252]
[1731270126130,0.13423474,79469.0,79468.0,0.137301]
[1731270126131,0.00839974,79469.0,79468.0,0.137301]
[1731270126343,0.00839974,79469.0,79468.0,0.15985142]
[1731270126544,0.13423474,79469.0,79468.0,0.135301]
[1731270126746,0.13423474,79469.0,79468.0,0.15785142]
[1731270126946,0.13423474,79469.0,79468.0,0.17383656]
[1731270127358,0.13423474,79469.0,79468.0,0.15785142]
[1731270127760,0.13423474,79469.0,79468.0,0.00935879]
[1731270129345,0.13423474,79469.0,79468.0,0.03190921]
[1731270130078,0.13423474,79469.0,79468.0,0.00935879]
[1731270131409,0.13423474,79469.0,79468.0,0.03190921]
[1731270132549,0.00839974,79469.0,79468.0,0.15785142]
[1731270132736,0.00839974,79469.0,79468.0,0.17447356]
[1731270133084,0.00839974,79469.0,79468.0,0.17647356]
[1731270133286,0.00839974,79469.0,79468.0,0.16713413]
[1731270133711,0.00839974,79469.0,79468.0,0.19222311]
[1731270133932,0.00839974,79469.0,79468.0,0.18970672]
[1731270134274,0.13423474,79469.0,79468.0,0.17192258]
[1731270134561,0.13423474,79469.0,79468.0,0.14934899]
[1731270134734,0.00839974,79469.0,79468.0,0.15134899]
[1731270134935,0.00839974,79469.0,79468.0,0.14934899]
[1731270135135,0.125831,79472.0,79468.0,0.17191749]
[1731270135471,0.125833,79470.0,79469.0,0.14851199]
[1731270135664,0.251645,79477.0,79469.0,0.15051199]
[1731270135864,0.125832,79471.0,79470.0,0.02256978]
[1731270136067,0.125829,79473.0,79470.0,0.17283734]
[1731270136291,0.12583,79472.0,79471.0,0.14851199]
[1731270136478,0.251648,79476.0,79471.0,0.14851199]
[1731270136682,0.251654,79474.0,79472.0,0.02256978]
[1731270136878,0.125827,79474.0,79473.0,0.04013721]
[1731270137083,0.125827,79474.0,79473.0,0.02256978]
[1731270138294,0.125827,79474.0,79473.0,0.03662227]
[1731270138650,0.12859751,79474.0,79473.0,0.03662227]
[1731270139930,0.00277051,79474.0,79473.0,0.16256448]
[1731270140176,0.00277051,79474.0,79473.0,0.19387503]
[1731270140408,0.125822,79478.0,79473.0,0.19387503]
[1731270140572,0.00277051,79474.0,79473.0,0.15059674]
[1731270140747,0.125824,79476.0,79473.0,0.15577973]
[1731270140957,0.00277051,79474.0,79473.0,0.11922347]
[1731270141163,0.125827,79474.0,79473.0,0.15577995]
[1731270141380,0.12859751,79474.0,79473.0,0.15577995]
[1731270141766,0.12859751,79474.0,79473.0,0.19035942]
[1731270142166,0.13292319,79474.0,79473.0,0.15577995]
[1731270145157,0.13459719,79474.0,79473.0,0.15577995]
[1731270146997,0.13459719,79474.0,79473.0,0.11922347]
[1731270147201,0.13459719,79474.0,79473.0,0.15581959]
[1731270147978,0.13179719,79474.0,79473.0,0.15581959]
[1731270148141,0.13179719,79474.0,79473.0,0.03659612]
[1731270148355,0.27763671,79474.0,79473.0,0.03659612]
[1731270148555,0.13179719,79474.0,79473.0,0.03659612]
[1731270149956,0.17291155,79474.0,79473.0,0.03659612]
[1731270150332,0.125835,79469.0,79468.0,0.000837]
[1731270150557,0.125835,79469.0,79468.0,0.01492162]
[1731270150758,0.13291182,79469.0,79468.0,0.01492162]
[1731270151659,0.35155849,79469.0,79468.0,0.01492162]
[1731270151917,0.35155849,79469.0,79468.0,0.000837]
[1731270151918,0.39685403,79469.0,79468.0,0.000837]
[1731270152112,0.45218948,79469.0,79468.0,0.000837]
[1731270152576,0.125851,79459.0,79458.0,0.18917777]
[1731270152827,0.125851,79459.0,79458.0,0.20325341]
[1731270153141,0.125851,79459.0,79458.0,0.01407564]
[1731270154474,0.12857401,79459.0,79458.0,0.01407564]
[1731270155097,0.16884332,79459.0,79458.0,0.01407564]
[1731270155585,0.16884332,79459.0,79456.0,0.000837]
[1731270155586,0.12900185,79458.0,79457.0,0.01407564]
[1731270156017,0.00586969,79458.0,79456.0,0.000837]
[1731270156264,0.125854,79457.0,79456.0,0.000837]
[1731270156511,0.12857067,79457.0,79456.0,0.000837]
[1731270157198,0.13285239,79457.0,79456.0,0.000837]
[1731270157624,0.13285239,79457.0,79456.0,0.0148907]
[1731270158329,0.13285239,79457.0,79456.0,0.000837]
[1731270158562,0.13285239,79457.0,79456.0,0.01486597]
[1731270160494,0.13285239,79457.0,79456.0,0.01486047]
[1731270160910,0.13285239,79457.0,79456.0,0.01486032]
[1731270161078,0.13285239,79457.0,79456.0,0.01370856]
[1731270161224,0.13285239,79457.0,79456.0,0.02774631]
[1731270161619,0.13285239,79457.0,79456.0,0.02758417]
[1731270162642,0.27869191,79457.0,79456.0,0.00514572]
[1731270163789,0.13285239,79457.0,79456.0,0.00514572]
[1731270167424,0.125857,79455.0,79445.0,0.02243401]
[1731270167620,0.125857,79455.0,79451.0,0.02243401]
[1731270167852,0.13283094,79455.0,79452.0,0.02243401]
[1731270168065,0.13283094,79455.0,79445.0,0.02243401]
[1731270168256,0.13283094,79455.0,79446.0,0.02243401]
[1731270168497,0.13283094,79455.0,79447.0,0.02243401]
[1731270168703,0.13283094,79455.0,79448.0,0.02243401]
[1731270168902,0.13283094,79455.0,79449.0,0.02243401]
[1731270169139,0.13283094,79455.0,79450.0,0.02243401]
[1731270169390,0.13283094,79455.0,79451.0,0.02243401]
[1731270169581,0.13283094,79455.0,79445.0,0.02243401]
[1731270169885,0.13283094,79455.0,79446.0,0.02495113]
[1731270170089,0.13283094,79455.0,79447.0,0.02243401]
[1731270170293,0.13283094,79455.0,79448.0,0.02243401]
[1731270170556,0.13283094,79455.0,79449.0,0.02243401]
[1731270170764,0.13283094,79455.0,79450.0,0.02243725]
[1731270171107,0.13283094,79455.0,79451.0,0.02243725]
[1731270171312,0.13283094,79455.0,79454.0,0.02283725]
[1731270171937,0.36858909,79455.0,79454.0,0.02283725]
[1731270172185,0.023,79447.0,79444.0,0.000838]
[1731270172392,0.29471252,79445.0,79444.0,0.000838]
[1731270172591,0.67149425,79445.0,79444.0,0.000838]
[1731270172711,1.17149425,79445.0,79444.0,1e-06]
[1731270172920,0.005,79436.0,79435.0,0.18917777]
[1731270173158,0.005,79436.0,79406.0,0.18917777]
[1731270173159,0.125901,79427.0,79406.0,0.18917777]
[1731270173370,0.29474052,79427.0,79406.0,0.18917777]
[1731270173526,0.148903,79426.0,79406.0,0.18917777]
[1731270173730,0.1514203,79426.0,79419.0,0.01401689]
[1731270173956,0.27984521,79426.0,79407.0,0.0224281]
[1731270174156,0.27984521,79426.0,79408.0,0.01401682]
[1731270174157,0.60470203,79426.0,79408.0,0.01401682]
[1731270174379,0.60470203,79426.0,79409.0,0.01401682]
[1731270174380,0.45634521,79426.0,79409.0,0.01401682]
[1731270174683,0.023,79412.0,79410.0,0.01400786]
[1731270174943,0.653931,79408.0,79407.0,0.01400786]
[1731270175143,0.39477052,79408.0,79407.0,0.18917777]
[1731270175551,0.125939,79403.0,79402.0,0.000838]
[1731270175740,0.1284563,79403.0,79402.0,0.000838]
[1731270175943,0.125946,79399.0,79398.0,0.01097357]
[1731270176288,0.125947,79398.0,79390.0,0.02239826]
[1731270176489,0.125952,79395.0,79390.0,0.02239826]
[1731270176705,0.125952,79395.0,79385.0,0.02239826]
[1731270176907,0.12847211,79395.0,79394.0,0.01998198]
[1731270178267,0.12847211,79395.0,79394.0,0.000838]
[1731270178823,0.00252011,79395.0,79394.0,0.12678021]
[1731270179053,0.00252011,79395.0,79394.0,0.14917847]
[1731270179258,0.251881,79403.0,79394.0,0.14917847]
[1731270179417,0.125943,79401.0,79395.0,0.14834047]
[1731270179766,0.00253597,79400.0,79396.0,0.05260397]
[1731270179907,0.12848097,79400.0,79397.0,0.14834047]
[1731270180110,0.00253597,79400.0,79398.0,0.01540406]
[1731270180335,0.12847997,79400.0,79399.0,0.12594221]
[1731270180555,0.12847997,79400.0,79399.0,0.1418408]
[1731270180755,0.12847997,79400.0,79399.0,0.14030041]
[1731270180973,0.12847997,79400.0,79399.0,0.12440182]
[1731270181369,0.12847997,79400.0,79399.0,0.12132102]
[1731270181980,0.12847997,79400.0,79399.0,0.12059145]
[1731270182464,0.00253597,79400.0,79399.0,0.12059145]
[1731270182669,0.00410607,79402.0,79401.0,0.132942]
[1731270182890,0.5765,79438.0,79411.0,0.125927]
[1731270182891,0.251818,79423.0,79411.0,0.125927]
[1731270183102,0.251818,79423.0,79409.0,0.002]
[1731270183103,0.25179,79432.0,79412.0,0.12594221]
[1731270183349,0.00260575,79422.0,79412.0,0.12594221]
[1731270183547,0.00260575,79422.0,79417.0,0.18917777]
[1731270183548,0.125913,79420.0,79417.0,0.18917777]
[1731270183744,0.00260258,79421.0,79418.0,0.12594221]
[1731270184205,0.251832,79418.0,79412.0,0.02226736]
[1731270184428,0.125936,79405.0,79404.0,0.02226736]
[1731270184823,0.125941,79402.0,79401.0,0.14627428]
[1731270185034,0.125941,79402.0,79401.0,0.02033207]
[1731270185239,0.125946,79399.0,79394.0,0.000838]
[1731270185585,0.125952,79395.0,79394.0,0.000838]
[1731270185804,0.125952,79395.0,79394.0,0.12678021]
[1731270185997,0.12847211,79395.0,79394.0,0.12678021]
[1731270186998,0.12847211,79395.0,79394.0,0.16334165]
[1731270187222,0.13253072,79395.0,79394.0,0.16334165]
[1731270187783,0.13253072,79395.0,79394.0,0.12678021]
[1731270188046,0.00657872,79395.0,79394.0,0.14069389]
[1731270189798,0.13253072,79395.0,79394.0,0.14069223]
[1731270190207,0.13253072,79395.0,79394.0,0.16295196]
[1731270192075,0.13253072,79395.0,79394.0,0.16242684]
[1731270192331,0.13253072,79395.0,79394.0,0.17881192]
[1731270192591,0.00657872,79395.0,79394.0,0.17881192]
[1731270193008,0.09320487,79395.0,79394.0,0.17881192]
[1731270193234,0.251898,79397.0,79394.0,0.17881192]
[1731270193472,0.125951,79396.0,79395.0,0.03617175]
[1731270194878,0.00168,79400.0,79398.0,0.002]
[1731270195127,0.00168,79400.0,79399.0,0.18059664]
[1731270195337,0.00168,79400.0,79399.0,0.32406098]
[1731270195549,0.00168,79400.0,79399.0,0.32154264]
[1731270196226,0.0025173,79432.0,79421.0,0.002]
[1731270196493,0.0025173,79432.0,79408.0,0.251861]
[1731270196494,0.125882,79439.0,79427.0,0.002]
[1731270196736,0.0025173,79440.0,79427.0,0.002]
[1731270196737,0.125885,79437.0,79428.0,0.16211396]
[1731270196968,0.125885,79437.0,79429.0,0.22534952]
[1731270197195,0.0025173,79440.0,79430.0,0.22534952]
[1731270197440,0.0025173,79444.0,79431.0,0.03868936]
[1731270197668,0.0808,79452.0,79437.0,0.002]
[1731270197917,0.0041953,79457.0,79439.0,0.02230676]
[1731270198154,0.125855,79456.0,79440.0,0.35380909]
[1731270198359,0.0025173,79456.0,79446.0,0.002]
[1731270198565,0.04212035,79457.0,79447.0,0.03617175]
[1731270198787,0.001678,79457.0,79448.0,0.03617175]
[1731270199021,0.251711,79456.0,79449.0,0.05263486]
[1731270199254,0.127533,79457.0,79450.0,0.03617175]
[1731270199485,0.127533,79457.0,79451.0,0.03617175]
[1731270199719,0.127533,79457.0,79449.0,0.01646311]
[1731270199720,0.127533,79457.0,79452.0,0.03617175]
[1731270199945,0.001678,79457.0,79453.0,0.03619863]
[1731270200189,0.125856,79456.0,79446.0,0.12594221]
[1731270200399,0.125856,79456.0,79448.0,0.18917777]
[1731270200618,0.00664395,79455.0,79448.0,0.18917777]
[1731270200834,0.00664395,79455.0,79449.0,0.03620486]
[1731270201013,0.00664395,79455.0,79450.0,0.07118474]
[1731270201229,0.101678,79457.0,79451.0,0.03620486]
[1731270201430,0.101678,79457.0,79452.0,0.03620486]
[1731270201431,0.00663954,79454.0,79452.0,0.03620486]
[1731270201603,0.001678,79457.0,79453.0,0.03620486]
[1731270201803,0.001678,79457.0,79450.0,0.03497988]
[1731270201804,0.001678,79457.0,79454.0,0.03620486]
[1731270202261,0.001678,79457.0,79450.0,0.03497988]
[1731270202464,0.001678,79457.0,79456.0,0.31703277]
[1731270202661,0.001678,79457.0,79456.0,0.25379721]
[1731270202892,0.001678,79457.0,79456.0,0.26131382]
[1731270203096,0.001678,79457.0,79456.0,0.31056657]
[1731270203349,0.001678,79457.0,79456.0,0.30804996]
[1731270203950,0.001678,79457.0,79456.0,0.30604996]
[1731270204109,0.001678,79457.0,79456.0,0.32830163]
[1731270204473,0.001678,79457.0,79456.0,0.33030163]
[1731270204700,0.001678,79457.0,79456.0,0.32830163]
[1731270204886,0.001678,79457.0,79456.0,0.33030163]
[1731270206003,0.001678,79457.0,79456.0,0.14819388]
[1731270206674,0.001678,79457.0,79451.0,0.02225167]
[1731270206886,0.001678,79457.0,79453.0,0.18917777]
[1731270207092,0.001678,79457.0,79454.0,0.12594221]
[1731270207273,0.00589907,79456.0,79454.0,0.12594221]
[1731270207624,0.001678,79457.0,79455.0,0.18546726]
[1731270207838,0.001678,79457.0,79455.0,0.05961026]
[1731270208099,0.001678,79457.0,79455.0,0.08186193]
[1731270208312,0.001678,79457.0,79456.0,0.48347033]
[1731270208543,0.001678,79457.0,79456.0,0.59210526]
[1731270208771,0.001678,79457.0,79456.0,0.74225893]
[1731270210383,0.001678,79457.0,79456.0,0.52310255]
[1731270214024,0.001678,79457.0,79456.0,0.43420255]
[1731270214234,0.001678,79457.0,79456.0,0.44304546]
[1731270214644,0.001678,79457.0,79456.0,0.34304546]
[1731270214775,0.001678,79457.0,79456.0,0.35504546]
[1731270215996,0.001678,79457.0,79456.0,0.35304546]
[1731270216249,0.001678,79457.0,79456.0,0.21219046]
[1731270216467,0.127532,79457.0,79456.0,0.13978512]
[1731270216680,0.13344291,79457.0,79456.0,0.13978512]
[1731270216907,0.13344291,79457.0,79456.0,0.01384291]
[1731270217138,0.125857,79455.0,79454.0,0.000839]
[1731270217359,0.125857,79455.0,79454.0,0.12678121]
[1731270217615,0.12967502,79455.0,79454.0,0.01468191]
[1731270217876,0.12967502,79455.0,79454.0,0.000839]
[1731270218403,0.12967502,79455.0,79454.0,0.01468191]
[1731270218624,0.12967502,79455.0,79454.0,0.000839]
[1731270218842,0.25879344,79455.0,79454.0,0.000839]
[1731270219269,0.25879344,79455.0,79440.0,0.18917777]
[1731270219270,0.251752,79444.0,79440.0,0.18917777]
[1731270219507,0.125879,79441.0,79440.0,0.33403776]
[1731270219747,0.00668356,79443.0,79440.0,0.34788994]
[1731270219992,0.251718,79454.0,79440.0,0.33397655]
[1731270219993,0.00667474,79441.0,79440.0,0.33397655]
[1731270220227,0.125879,79441.0,79440.0,0.03603512]
[1731270220674,0.125878,79442.0,79440.0,0.03603512]
[1731270220885,0.125877,79442.0,79441.0,0.03603512]
[1731270221354,0.251733,79449.0,79441.0,0.03603512]
[1731270221355,0.251724,79452.0,79445.0,0.002]
[1731270221594,0.125865,79450.0,79446.0,0.17837506]
[1731270221801,0.125865,79450.0,79447.0,0.03603512]
[1731270222007,0.125865,79450.0,79448.0,0.16197733]
[1731270222281,0.251696,79461.0,79450.0,0.002]
[1731270222489,0.12586,79454.0,79451.0,0.14811448]
[1731270222735,0.127532,79457.0,79452.0,0.03603512]
[1731270222965,0.001678,79457.0,79455.0,0.125856]
[1731270223218,0.001678,79457.0,79456.0,0.28783233]
[1731270223402,0.001678,79457.0,79456.0,0.16197733]
[1731270223613,0.001678,79457.0,79456.0,0.28783233]
[1731270223844,0.001678,79457.0,79456.0,0.36460691]
[1731270224081,0.001678,79457.0,79456.0,0.36660691]
[1731270225227,0.001674,79469.0,79461.0,0.002]
[1731270225454,0.125836,79468.0,79462.0,0.16197733]
[1731270225667,0.13178111,79468.0,79463.0,0.05387263]
[1731270225902,0.13178111,79468.0,79464.0,0.16197733]
[1731270226120,0.00594511,79468.0,79465.0,0.03603512]
[1731270226369,0.00382362,79468.0,79466.0,0.16197733]
[1731270226584,0.001674,79469.0,79467.0,0.03603512]
[1731270226811,0.001674,79469.0,79468.0,0.18217878]
[1731270227019,0.127509,79469.0,79468.0,0.18217878]
[1731270228630,0.127509,79469.0,79468.0,0.18073078]
[1731270228838,0.001674,79469.0,79468.0,0.18073078]
[1731270229256,0.127509,79469.0,79468.0,0.18073078]
[1731270230744,0.001674,79469.0,79468.0,0.18073078]
[1731270231862,0.127509,79469.0,79468.0,0.18073078]
[1731270232261,0.13135276,79469.0,79468.0,0.18073078]
[1731270233274,0.00551776,79469.0,79468.0,0.18073078]
[1731270236045,0.00551776,79469.0,79468.0,0.18098946]
[1731270237361,0.13135276,79469.0,79468.0,0.16078801]
[1731270237636,0.13135276,79469.0,79468.0,0.0362938]
[1731270240330,0.26115276,79469.0,79468.0,0.0362938]
[1731270240557,0.125852,79458.0,79457.0,0.000839]
[1731270241220,0.13262657,79458.0,79457.0,0.000839]
[1731270241454,0.21402657,79458.0,79457.0,0.000839]
[1731270242149,0.125857,79455.0,79454.0,0.00066025]
[1731270242352,0.1283743,79455.0,79454.0,0.00066025]
[1731270242820,0.13513565,79455.0,79454.0,0.00066025]
[1731270243084,0.44981968,79455.0,79454.0,0.00066025]
[1731270243309,0.005,79444.0,79443.0,0.18917777]
[1731270243509,0.53947533,79444.0,79443.0,0.18917777]
[1731270243957,0.125889,79435.0,79425.0,0.18917777]
[1731270244164,0.1284063,79435.0,79425.0,0.18917777]
[1731270244653,0.125903,79426.0,79425.0,0.18917777]
[1731270244877,0.125903,79426.0,79425.0,0.20809555]
[1731270245336,0.125903,79426.0,79425.0,0.01891778]
[1731270245545,0.1259,79428.0,79425.0,0.12594221]
[1731270245758,0.251781,79435.0,79428.0,0.002]
[1731270245983,0.00871744,79444.0,79433.0,0.14580133]
[1731270246186,0.00871744,79444.0,79439.0,0.002]
[1731270246473,0.12588,79441.0,79440.0,0.12594221]
[1731270246708,0.00871744,79444.0,79418.0,0.005]
[1731270246709,0.251755,79442.0,79418.0,0.005]
[1731270246994,0.14580133,79443.0,79417.0,0.19117777]
[1731270246995,0.125897,79430.0,79429.0,0.18917777]
[1731270247387,0.251784,79433.0,79419.0,0.15309999]
[1731270247560,0.125901,79427.0,79426.0,0.18917777]
[1731270247880,0.125901,79427.0,79419.0,0.15309999]
[1731270247881,0.251797,79429.0,79419.0,0.15109999]
[1731270248112,0.125911,79421.0,79420.0,0.18884172]
[1731270248283,0.125911,79421.0,79420.0,0.12594221]
[1731270250076,0.251813,79424.0,79420.0,0.12594221]
[1731270250312,0.251813,79424.0,79414.0,0.125921]
[1731270250313,0.125942,79401.0,79394.0,0.00571288]
[1731270250502,0.125942,79401.0,79400.0,0.14905193]
[1731270251197,0.12785112,79401.0,79400.0,0.12678221]
[1731270252016,0.00190912,79401.0,79400.0,0.12678221]
[1731270252216,0.0025173,79421.0,79400.0,0.12678221]
[1731270252531,0.0025173,79424.0,79401.0,0.1398382]
[1731270252733,0.125919,79416.0,79403.0,0.18917777]
[1731270252933,0.251841,79415.0,79404.0,0.20093947]
[1731270253127,0.125929,79410.0,79405.0,0.01389599]
[1731270253288,0.125929,79410.0,79406.0,0.1398382]
[1731270253497,0.00647412,79409.0,79407.0,0.01589599]
[1731270253695,0.13240412,79409.0,79408.0,0.1812769]
[1731270253959,0.00647412,79409.0,79408.0,0.1812769]
[1731270254279,0.125924,79413.0,79408.0,0.1812769]
[1731270254488,0.251832,79418.0,79408.0,0.1812769]
[1731270254489,0.00642198,79409.0,79408.0,0.16738091]
[1731270254687,0.251832,79418.0,79408.0,0.16738091]
[1731270254688,0.125919,79416.0,79408.0,0.18126911]
[1731270254892,0.251832,79418.0,79409.0,0.05836486]
[1731270255089,0.125915,79419.0,79415.0,0.002]
[1731270255349,0.251803,79428.0,79416.0,0.13982961]
[1731270255558,0.125916,79418.0,79417.0,0.0138874]
[1731270256759,0.34740114,79418.0,79417.0,0.0138874]
[1731270257010,0.125933,79407.0,79406.0,0.05]
[1731270257210,0.125933,79407.0,79406.0,0.17594221]
[1731270257411,0.125933,79407.0,79406.0,0.0638823]
[1731270257617,0.125933,79407.0,79406.0,0.05]
[1731270258860,0.16742108,79407.0,79406.0,0.05]
[1731270259493,0.16708325,79407.0,79406.0,0.05]
[1731270260299,0.12559517,79407.0,79406.0,0.05646187]
[1731270260498,0.12559517,79407.0,79406.0,0.05]
[1731270261302,0.251907,79395.0,79388.0,0.001424]
[1731270261558,0.125955,79393.0,79392.0,0.12594221]
[1731270264356,0.125955,79393.0,79392.0,0.12678121]
[1731270264659,0.125955,79393.0,79392.0,0.13960173]
[1731270264867,0.25188,79403.0,79392.0,0.14460173]
[1731270265076,0.0792,79418.0,79392.0,0.14460173]
[1731270265077,0.0025173,79414.0,79394.0,0.002]
[1731270265278,0.00827868,79402.0,79401.0,0.002]
[1731270265497,0.0792,79429.0,79407.0,0.002]
[1731270265700,0.125925,79413.0,79408.0,0.12594221]
[1731270265907,0.125926,79412.0,79408.0,0.12594221]
[1731270266108,0.251843,79415.0,79408.0,0.12594221]
[1731270266316,0.01093054,79423.0,79408.0,0.12594221]
[1731270266518,0.125924,79413.0,79408.0,0.12594221]
[1731270266759,0.251822,79421.0,79412.0,0.18917777]
[1731270266993,0.00841324,79423.0,79413.0,0.12594221]
[1731270267150,0.125922,79414.0,79413.0,0.12594221]
[1731270267366,0.251822,79421.0,79413.0,0.12594221]
[1731270267568,0.125911,79421.0,79413.0,0.12594221]
[1731270267770,0.125913,79420.0,79414.0,0.02646897]
[1731270267975,0.00841324,79423.0,79414.0,0.02646897]
[1731270267976,0.00841324,79423.0,79417.0,0.002]
[1731270268156,0.00841324,79423.0,79422.0,0.127909]
[1731270268528,0.1259,79428.0,79422.0,0.12594221]
[1731270268733,0.755238,79445.0,79423.0,0.1612217]
[1731270268878,0.125906,79424.0,79423.0,0.12594221]
[1731270270873,0.00845508,79427.0,79423.0,0.12594221]
[1731270271090,0.00845508,79427.0,79426.0,0.125903]
[1731270271290,0.00845508,79427.0,79426.0,0.27597392]
[1731270271529,0.0758,79456.0,79435.0,0.002]
[1731270271732,0.251747,79445.0,79436.0,0.12845969]
[1731270271843,0.125876,79443.0,79436.0,0.14807092]
[1731270272071,0.125876,79443.0,79437.0,0.02212871]
[1731270272438,0.00203912,79442.0,79438.0,0.14807092]
[1731270272637,0.125881,79440.0,79439.0,0.02212871]
[1731270272875,0.125881,79440.0,79439.0,0.14807092]
[1731270273049,0.00652083,79440.0,79439.0,0.14807092]
[1731270273251,0.00652083,79440.0,79439.0,0.16190429]
[1731270273675,0.125878,79442.0,79439.0,0.16190429]
[1731270273881,0.125878,79442.0,79440.0,0.16190429]
[1731270274102,0.125878,79442.0,79441.0,0.03596208]
[1731270274310,0.125878,79442.0,79441.0,0.16190429]
[1731270274957,0.125878,79442.0,79441.0,0.03596208]
[1731270276010,0.12791712,79442.0,79441.0,0.03596208]
[1731270277281,0.13454542,79442.0,79441.0,0.03596208]
[1731270277583,0.00866742,79442.0,79441.0,0.03596208]
[1731270278123,0.13454542,79442.0,79441.0,0.03596208]
[1731270280518,0.13454542,79442.0,79441.0,0.01383337]
[1731270280828,0.13454542,79442.0,79441.0,0.03596208]
[1731270281613,0.13454542,79442.0,79441.0,0.01383337]